[Event "Titled Tuesday Blitz July 18 Early 2023"]
[White "Galperin, Platon"]
[Black "Rychagov, Andrey"]
[WhiteFideId "14165414"]
[BlackFideId "4119932"]
[WhiteElo "2974"]
[BlackElo "2686"]
[Result "1-0"]
[Round "5"]
[TimeControl "180+2"]
[Date "2023.07.18"]
[WhiteClock "0:01:42"]
[BlackClock "0:00:34"]
[Board "19"]

1. e4 {[%clk 0:03:00]}  e6 {[%clk 0:02:59]} 2. Qe2 {[%clk 0:03:00]}  c5 {[%clk 0:02:57]} 3. Nf3 {[%clk 0:03:00]}  Nc6 {[%clk 0:02:57]} 4. g3 {[%clk 0:03:01]}  e5 {[%clk 0:02:57]} 5. Bg2 {[%clk 0:03:01]}  g6 {[%clk 0:02:57]} 6. O-O {[%clk 0:03:02]}  Bg7 {[%clk 0:02:57]} 7. Na3 {[%clk 0:02:59]}  Nf6 {[%clk 0:02:54]} 8. d3 {[%clk 0:02:43]}  O-O {[%clk 0:02:52]} 9. Bg5 {[%clk 0:02:43]}  h6 {[%clk 0:02:50]} 10. Bxf6 {[%clk 0:02:43]}  Bxf6 {[%clk 0:02:50]} 11. Nc4 {[%clk 0:02:44]}  d6 {[%clk 0:02:50]} 12. c3 {[%clk 0:02:43]}  Be6 {[%clk 0:02:48]} 13. Ne3 {[%clk 0:02:44]}  Bg7 {[%clk 0:02:48]} 14. Nd2 {[%clk 0:02:44]}  f5 {[%clk 0:02:46]} 15. exf5 {[%clk 0:02:42]}  gxf5 {[%clk 0:02:45]} 16. f4 {[%clk 0:02:43]}  Qd7 {[%clk 0:02:42]} 17. g4 {[%clk 0:02:14]}  exf4 {[%clk 0:02:21]} 18. gxf5 {[%clk 0:02:08]}  fxe3 {[%clk 0:02:10]} 19. fxe6 {[%clk 0:02:08]}  Qxe6 {[%clk 0:02:10]} 20. Nc4 {[%clk 0:02:09]}  Rae8 {[%clk 0:01:37]} 21. Rxf8+ {[%clk 0:02:05]}  Rxf8 {[%clk 0:01:30]} 22. Nxe3 {[%clk 0:02:05]}  Kh8 {[%clk 0:01:28]} 23. Re1 {[%clk 0:02:01]}  Re8 {[%clk 0:01:13]} 24. Be4 {[%clk 0:01:55]}  Qh3 {[%clk 0:01:03]} 25. Rf1 {[%clk 0:01:51]}  Ne5 {[%clk 0:01:01]} 26. Nf5 {[%clk 0:01:47]}  Ng4 {[%clk 0:00:48]} 27. Rf3 {[%clk 0:01:44]}  Qh5 {[%clk 0:00:43]} 28. Nxg7 {[%clk 0:01:43]}  d5 {[%clk 0:00:34]} 29. Nxh5 {[%clk 0:01:42]} 1-0


[Site "https://www.chess.com"]

[Event "Titled Tuesday Blitz July 18 Early 2023"]
[White "Itgelt, Khuyagtsogt"]
[Black "Van Foreest, Jorden"]
[WhiteFideId "4902912"]
[BlackFideId "1039784"]
[WhiteElo "2683"]
[BlackElo "2957"]
[Result "0-1"]
[Round "5"]
[TimeControl "180+2"]
[Date "2023.07.18"]
[WhiteClock "0:00:00"]
[BlackClock "0:01:05"]
[Board "20"]

1. d4 {[%clk 0:03:00]}  Nf6 {[%clk 0:02:58]} 2. c4 {[%clk 0:03:00]}  e6 {[%clk 0:02:59]} 3. Nf3 {[%clk 0:03:00]}  d5 {[%clk 0:02:59]} 4. g3 {[%clk 0:03:01]}  Bb4+ {[%clk 0:02:59]} 5. Bd2 {[%clk 0:03:01]}  Be7 {[%clk 0:03:00]} 6. Bg2 {[%clk 0:03:00]}  Nbd7 {[%clk 0:03:00]} 7. Qc2 {[%clk 0:03:00]}  c6 {[%clk 0:03:01]} 8. O-O {[%clk 0:03:00]}  Ne4 {[%clk 0:03:01]} 9. Bf4 {[%clk 0:02:57]}  g5 {[%clk 0:03:01]} 10. Be3 {[%clk 0:02:57]}  h5 {[%clk 0:02:59]} 11. Nc3 {[%clk 0:02:52]}  Nd6 {[%clk 0:02:59]} 12. cxd5 {[%clk 0:02:51]}  exd5 {[%clk 0:02:54]} 13. b3 {[%clk 0:02:34]}  Nf5 {[%clk 0:02:44]} 14. Qxf5 {[%clk 0:02:26]}  g4 {[%clk 0:02:26]} 15. Ne5 {[%clk 0:02:06]}  Nxe5 {[%clk 0:02:24]} 16. Qxe5 {[%clk 0:02:07]}  f6 {[%clk 0:02:24]} 17. Qf4 {[%clk 0:01:39]}  Bd6 {[%clk 0:02:24]} 18. Qh6 {[%clk 0:01:38]}  Rxh6 {[%clk 0:02:24]} 19. Bxh6 {[%clk 0:01:39]}  f5 {[%clk 0:02:20]} 20. e3 {[%clk 0:01:26]}  h4 {[%clk 0:02:20]} 21. Rfe1 {[%clk 0:01:25]}  Kf7 {[%clk 0:02:19]} 22. a3 {[%clk 0:01:23]}  a5 {[%clk 0:02:16]} 23. Bf4 {[%clk 0:01:22]}  Be6 {[%clk 0:02:13]} 24. Na4 {[%clk 0:01:21]}  Qe7 {[%clk 0:01:54]} 25. Bxd6 {[%clk 0:01:10]}  Qxd6 {[%clk 0:01:55]} 26. Nc5 {[%clk 0:01:11]}  b6 {[%clk 0:01:51]} 27. Nd3 {[%clk 0:01:11]}  Rh8 {[%clk 0:01:51]} 28. b4 {[%clk 0:01:10]}  Ra8 {[%clk 0:01:46]} 29. Rec1 {[%clk 0:01:06]}  Kg7 {[%clk 0:01:38]} 30. Rab1 {[%clk 0:00:50]}  axb4 {[%clk 0:01:36]} 31. axb4 {[%clk 0:00:51]}  Bd7 {[%clk 0:01:34]} 32. Ra1 {[%clk 0:00:50]}  Qb8 {[%clk 0:01:28]} 33. Ne5 {[%clk 0:00:48]}  Be8 {[%clk 0:01:29]} 34. gxh4 {[%clk 0:00:38]}  b5 {[%clk 0:01:26]} 35. Nd3 {[%clk 0:00:28]}  Kh6 {[%clk 0:01:24]} 36. Ra5 {[%clk 0:00:20]}  Rxa5 {[%clk 0:01:22]} 37. bxa5 {[%clk 0:00:21]}  b4 {[%clk 0:01:22]} 38. Rb1 {[%clk 0:00:15]}  b3 {[%clk 0:01:22]} 39. Rb2 {[%clk 0:00:15]}  f4 {[%clk 0:01:16]} 40. exf4 {[%clk 0:00:13]}  Bg6 {[%clk 0:01:16]} 41. Nc5 {[%clk 0:00:11]}  Bc2 {[%clk 0:01:14]} 42. a6 {[%clk 0:00:12]}  Qb4 {[%clk 0:01:14]} 43. a7 {[%clk 0:00:04]}  Qa3 {[%clk 0:01:14]} 44. Nxb3 {[%clk 0:00:03]}  Bd3 {[%clk 0:01:07]} 45. Nc1 {[%clk 0:00:00]}  Qa1 {[%clk 0:01:05]} 0-1


[Site "https://www.chess.com"]

[Event "Titled Tuesday Blitz July 18 Early 2023"]
[White "Tica, Sven"]
[Black "Baskakov, Egor"]
[WhiteFideId "14526948"]
[BlackFideId "24197866"]
[WhiteElo "2661"]
[BlackElo "2878"]
[Result "1-0"]
[Round "5"]
[TimeControl "180+2"]
[Date "2023.07.18"]
[WhiteClock "0:00:45"]
[BlackClock "0:00:04"]
[Board "24"]

1. Nf3 {[%clk 0:03:00]}  Nf6 {[%clk 0:02:59]} 2. g3 {[%clk 0:03:00]}  e6 {[%clk 0:03:00]} 3. Bg2 {[%clk 0:03:01]}  d5 {[%clk 0:03:01]} 4. O-O {[%clk 0:03:01]}  Be7 {[%clk 0:03:01]} 5. d3 {[%clk 0:03:01]}  O-O {[%clk 0:03:02]} 6. Nbd2 {[%clk 0:03:02]}  d4 {[%clk 0:03:03]} 7. c3 {[%clk 0:02:55]}  c5 {[%clk 0:03:02]} 8. cxd4 {[%clk 0:02:56]}  cxd4 {[%clk 0:03:03]} 9. a4 {[%clk 0:02:56]}  Nc6 {[%clk 0:03:03]} 10. Nc4 {[%clk 0:02:56]}  Nd5 {[%clk 0:03:02]} 11. b3 {[%clk 0:02:49]}  f6 {[%clk 0:02:57]} 12. Bb2 {[%clk 0:02:48]}  e5 {[%clk 0:02:57]} 13. Nfd2 {[%clk 0:02:47]}  Be6 {[%clk 0:02:57]} 14. Ne4 {[%clk 0:02:47]}  Rc8 {[%clk 0:02:55]} 15. Rc1 {[%clk 0:02:43]}  Ncb4 {[%clk 0:02:54]} 16. Na3 {[%clk 0:02:35]}  Qd7 {[%clk 0:02:53]} 17. Qd2 {[%clk 0:02:32]}  h6 {[%clk 0:02:35]} 18. Qe1 {[%clk 0:01:59]}  Na2 {[%clk 0:02:25]} 19. Rxc8 {[%clk 0:01:57]}  Rxc8 {[%clk 0:02:26]} 20. Qa1 {[%clk 0:01:57]}  Nac3 {[%clk 0:02:25]} 21. Bxc3 {[%clk 0:01:56]}  Nxc3 {[%clk 0:02:26]} 22. Nxc3 {[%clk 0:01:56]}  Rxc3 {[%clk 0:02:22]} 23. Nb5 {[%clk 0:01:50]}  Rc2 {[%clk 0:02:08]} 24. Rc1 {[%clk 0:01:45]}  Rxe2 {[%clk 0:01:53]} 25. Rc7 {[%clk 0:01:38]}  Qd8 {[%clk 0:01:51]} 26. Rxb7 {[%clk 0:01:33]}  a5 {[%clk 0:01:38]} 27. Ra7 {[%clk 0:01:25]}  Bd5 {[%clk 0:01:21]} 28. Bxd5+ {[%clk 0:01:21]}  Qxd5 {[%clk 0:01:22]} 29. Rxe7 {[%clk 0:01:22]}  Qf3 {[%clk 0:01:22]} 30. Qf1 {[%clk 0:01:23]}  Rd2 {[%clk 0:01:22]} 31. Nxd4 {[%clk 0:01:13]}  exd4 {[%clk 0:01:23]} 32. Re1 {[%clk 0:01:11]}  Rxd3 {[%clk 0:01:20]} 33. h4 {[%clk 0:01:01]}  Kh7 {[%clk 0:01:02]} 34. h5 {[%clk 0:00:56]}  Rxb3 {[%clk 0:00:52]} 35. Qc4 {[%clk 0:00:53]}  Rb2 {[%clk 0:00:07]} 36. Qxd4 {[%clk 0:00:44]}  Rb4 {[%clk 0:00:07]} 37. Qc5 {[%clk 0:00:44]}  Rxa4 {[%clk 0:00:07]} 38. Qc2+ {[%clk 0:00:45]}  f5 {[%clk 0:00:04]} 39. Qxa4 {[%clk 0:00:45]} 1-0


[Site "https://www.chess.com"]

[Event "Titled Tuesday Blitz July 18 Early 2023"]
[White "Jeet, Jain"]
[Black "Ter-Sahakyan, Samvel"]
[WhiteFideId "5073022"]
[BlackFideId "13302531"]
[WhiteElo "2650"]
[BlackElo "2843"]
[Result "0-1"]
[Round "5"]
[TimeControl "180+2"]
[Date "2023.07.18"]
[WhiteClock "0:00:12"]
[BlackClock "0:00:06"]
[Board "29"]

1. Nf3 {[%clk 0:03:00]}  d5 {[%clk 0:02:59]} 2. e3 {[%clk 0:03:00]}  c5 {[%clk 0:02:58]} 3. c4 {[%clk 0:03:00]}  d4 {[%clk 0:02:58]} 4. exd4 {[%clk 0:02:59]}  cxd4 {[%clk 0:02:58]} 5. d3 {[%clk 0:02:57]}  Nc6 {[%clk 0:02:58]} 6. g3 {[%clk 0:02:57]}  e5 {[%clk 0:02:58]} 7. Bg2 {[%clk 0:02:57]}  Nf6 {[%clk 0:02:53]} 8. O-O {[%clk 0:02:55]}  Nd7 {[%clk 0:02:53]} 9. b3 {[%clk 0:02:48]}  Be7 {[%clk 0:02:53]} 10. Ba3 {[%clk 0:02:46]}  O-O {[%clk 0:02:51]} 11. Re1 {[%clk 0:02:44]}  Re8 {[%clk 0:02:48]} 12. Bxe7 {[%clk 0:02:43]}  Rxe7 {[%clk 0:02:49]} 13. Na3 {[%clk 0:02:39]}  h6 {[%clk 0:02:37]} 14. Nc2 {[%clk 0:02:37]}  a5 {[%clk 0:02:36]} 15. a3 {[%clk 0:02:37]}  Nc5 {[%clk 0:02:21]} 16. Rb1 {[%clk 0:02:08]}  Bf5 {[%clk 0:02:19]} 17. Bf1 {[%clk 0:02:06]}  Qd6 {[%clk 0:02:04]} 18. b4 {[%clk 0:02:03]}  axb4 {[%clk 0:01:58]} 19. axb4 {[%clk 0:02:04]}  Na4 {[%clk 0:01:58]} 20. Ra1 {[%clk 0:01:49]}  Ree8 {[%clk 0:01:54]} 21. Ncxd4 {[%clk 0:01:41]}  exd4 {[%clk 0:01:33]} 22. Rxe8+ {[%clk 0:01:36]}  Rxe8 {[%clk 0:01:32]} 23. Qxa4 {[%clk 0:01:35]}  Qxb4 {[%clk 0:01:23]} 24. Qxb4 {[%clk 0:01:31]}  Nxb4 {[%clk 0:01:24]} 25. Nxd4 {[%clk 0:01:28]}  Bxd3 {[%clk 0:01:24]} 26. Bxd3 {[%clk 0:01:26]}  Nxd3 {[%clk 0:01:25]} 27. Rb1 {[%clk 0:01:22]}  Rd8 {[%clk 0:01:16]} 28. Nf5 {[%clk 0:01:17]}  Rd7 {[%clk 0:01:03]} 29. Rd1 {[%clk 0:01:06]}  h5 {[%clk 0:01:02]} 30. Kf1 {[%clk 0:01:04]}  g6 {[%clk 0:00:59]} 31. Ne3 {[%clk 0:01:03]}  Nc5 {[%clk 0:00:56]} 32. Rxd7 {[%clk 0:01:02]}  Nxd7 {[%clk 0:00:57]} 33. Ke2 {[%clk 0:01:03]}  Kf8 {[%clk 0:00:55]} 34. Kd3 {[%clk 0:01:02]}  Ke7 {[%clk 0:00:53]} 35. Kd4 {[%clk 0:01:00]}  Kd6 {[%clk 0:00:53]} 36. h4 {[%clk 0:00:59]}  Ne5 {[%clk 0:00:44]} 37. c5+ {[%clk 0:00:55]}  Ke6 {[%clk 0:00:44]} 38. Nd1 {[%clk 0:00:42]}  Ng4 {[%clk 0:00:41]} 39. Ke4 {[%clk 0:00:35]}  f6 {[%clk 0:00:22]} 40. Kd4 {[%clk 0:00:34]}  g5 {[%clk 0:00:21]} 41. Ke4 {[%clk 0:00:21]}  f5+ {[%clk 0:00:20]} 42. Kd4 {[%clk 0:00:20]}  gxh4 {[%clk 0:00:16]} 43. gxh4 {[%clk 0:00:21]}  Ne5 {[%clk 0:00:14]} 44. Ne3 {[%clk 0:00:19]}  Nf3+ {[%clk 0:00:14]} 45. Kc4 {[%clk 0:00:18]}  Nxh4 {[%clk 0:00:15]} 46. Kb5 {[%clk 0:00:19]}  f4 {[%clk 0:00:10]} 47. Nc4 {[%clk 0:00:18]}  Nf5 {[%clk 0:00:08]} 48. Kb6 {[%clk 0:00:18]}  Kd5 {[%clk 0:00:08]} 49. Nd2 {[%clk 0:00:16]}  h4 {[%clk 0:00:07]} 50. Nf3 {[%clk 0:00:17]}  h3 {[%clk 0:00:07]} 51. Nh2 {[%clk 0:00:17]}  Nd4 {[%clk 0:00:05]} 52. Ng4 {[%clk 0:00:17]}  Ne6 {[%clk 0:00:04]} 53. Nf6+ {[%clk 0:00:17]}  Ke5 {[%clk 0:00:04]} 54. Ng4+ {[%clk 0:00:17]}  Kf5 {[%clk 0:00:05]} 55. Nh2 {[%clk 0:00:18]}  Ke4 {[%clk 0:00:05]} 56. c6 {[%clk 0:00:18]}  bxc6 {[%clk 0:00:05]} 57. Kxc6 {[%clk 0:00:19]}  Nd4+ {[%clk 0:00:05]} 58. Kd6 {[%clk 0:00:18]}  Nf3 {[%clk 0:00:05]} 59. Ng4 {[%clk 0:00:12]}  Kf5 {[%clk 0:00:06]} 0-1


[Site "https://www.chess.com"]

[Event "Titled Tuesday Blitz July 18 Early 2023"]
[White "Lamaze, Simon"]
[Black "KhalilMousavi98"]
[WhiteFideId "36069264"]
[WhiteElo "2644"]
[BlackElo "2829"]
[Result "1-0"]
[Round "5"]
[TimeControl "180+2"]
[Date "2023.07.18"]
[WhiteClock "0:00:10"]
[BlackClock "0:00:00"]
[Board "31"]

1. e4 {[%clk 0:02:53]}  c5 {[%clk 0:02:58]} 2. Nf3 {[%clk 0:02:54]}  d6 {[%clk 0:02:58]} 3. d4 {[%clk 0:02:55]}  cxd4 {[%clk 0:02:58]} 4. Nxd4 {[%clk 0:02:55]}  Nf6 {[%clk 0:02:59]} 5. Nc3 {[%clk 0:02:56]}  a6 {[%clk 0:03:00]} 6. Bd2 {[%clk 0:02:57]}  e6 {[%clk 0:02:52]} 7. g4 {[%clk 0:02:56]}  b5 {[%clk 0:02:47]} 8. g5 {[%clk 0:02:54]}  Nfd7 {[%clk 0:02:48]} 9. a3 {[%clk 0:02:53]}  Bb7 {[%clk 0:02:48]} 10. h4 {[%clk 0:02:49]}  Be7 {[%clk 0:02:47]} 11. Rg1 {[%clk 0:02:47]}  Nc6 {[%clk 0:02:40]} 12. Nxc6 {[%clk 0:02:47]}  Bxc6 {[%clk 0:02:40]} 13. h5 {[%clk 0:02:42]}  g6 {[%clk 0:02:39]} 14. Be3 {[%clk 0:02:33]}  Qc7 {[%clk 0:02:23]} 15. Qd4 {[%clk 0:02:31]}  Ne5 {[%clk 0:02:20]} 16. Be2 {[%clk 0:02:27]}  O-O-O {[%clk 0:02:10]} 17. f4 {[%clk 0:02:26]}  Nd7 {[%clk 0:02:04]} 18. a4 {[%clk 0:02:19]}  e5 {[%clk 0:02:03]} 19. Qd2 {[%clk 0:02:16]}  exf4 {[%clk 0:01:55]} 20. Bxf4 {[%clk 0:02:16]}  Qb7 {[%clk 0:01:41]} 21. axb5 {[%clk 0:02:10]}  axb5 {[%clk 0:01:34]} 22. Nd5 {[%clk 0:02:06]}  Bxd5 {[%clk 0:01:31]} 23. Qxd5 {[%clk 0:02:06]}  Qxd5 {[%clk 0:01:29]} 24. exd5 {[%clk 0:02:06]}  Nb6 {[%clk 0:01:27]} 25. O-O-O {[%clk 0:01:46]}  Nc4 {[%clk 0:01:18]} 26. Bxc4 {[%clk 0:01:43]}  bxc4 {[%clk 0:01:18]} 27. Rd4 {[%clk 0:01:44]}  gxh5 {[%clk 0:01:14]} 28. Rxc4+ {[%clk 0:01:37]}  Kd7 {[%clk 0:01:14]} 29. Rh1 {[%clk 0:01:36]}  h6 {[%clk 0:01:14]} 30. gxh6 {[%clk 0:01:35]}  h4 {[%clk 0:01:14]} 31. Kd2 {[%clk 0:01:20]}  Rdg8 {[%clk 0:01:13]} 32. Ra4 {[%clk 0:01:16]}  Ra8 {[%clk 0:00:39]} 33. Rxa8 {[%clk 0:01:12]}  Rxa8 {[%clk 0:00:40]} 34. b4 {[%clk 0:01:13]}  f5 {[%clk 0:00:36]} 35. Kd3 {[%clk 0:00:59]}  Bf6 {[%clk 0:00:33]} 36. c3 {[%clk 0:00:58]}  Ra3 {[%clk 0:00:29]} 37. Bd2 {[%clk 0:00:57]}  Ra8 {[%clk 0:00:23]} 38. Rf1 {[%clk 0:00:57]}  h3 {[%clk 0:00:19]} 39. Rxf5 {[%clk 0:00:57]}  Be5 {[%clk 0:00:19]} 40. Rh5 {[%clk 0:00:57]}  h2 {[%clk 0:00:19]} 41. h7 {[%clk 0:00:34]}  Ke7 {[%clk 0:00:11]} 42. c4 {[%clk 0:00:33]}  Kf7 {[%clk 0:00:10]} 43. Bc3 {[%clk 0:00:33]}  Ra3 {[%clk 0:00:08]} 44. Kd2 {[%clk 0:00:18]}  Bxc3+ {[%clk 0:00:08]} 45. Kc2 {[%clk 0:00:17]}  Bh8 {[%clk 0:00:06]} 46. c5 {[%clk 0:00:16]}  Ra1 {[%clk 0:00:05]} 47. c6 {[%clk 0:00:12]}  Ra2+ {[%clk 0:00:04]} 48. Kb3 {[%clk 0:00:12]}  Rb2+ {[%clk 0:00:03]} 49. Ka3 {[%clk 0:00:12]}  Rc2 {[%clk 0:00:02]} 50. Ka4 {[%clk 0:00:11]}  Ke7 {[%clk 0:00:02]} 51. Kb5 {[%clk 0:00:11]}  Kd8 {[%clk 0:00:02]} 52. Kb6 {[%clk 0:00:12]}  Kc8 {[%clk 0:00:02]} 53. Rg5 {[%clk 0:00:12]}  Bd4+ {[%clk 0:00:00]} 54. Ka6 {[%clk 0:00:10]} 1-0


[Site "https://www.chess.com"]

[Event "Titled Tuesday Blitz July 18 Early 2023"]
[White "Ovchinnikov, Vsevolod"]
[Black "Pakleza, Zbigniew"]
[WhiteFideId "24176842"]
[BlackFideId "1119290"]
[WhiteElo "2642"]
[BlackElo "2808"]
[Result "1-0"]
[Round "5"]
[TimeControl "180+2"]
[Date "2023.07.18"]
[WhiteClock "0:00:08"]
[BlackClock "0:00:04"]
[Board "32"]

1. d4 {[%clk 0:03:00]}  d6 {[%clk 0:02:58]} 2. Nf3 {[%clk 0:03:00]}  Bg4 {[%clk 0:02:57]} 3. Nbd2 {[%clk 0:03:00]}  Nf6 {[%clk 0:02:57]} 4. h3 {[%clk 0:03:00]}  Bh5 {[%clk 0:02:56]} 5. g4 {[%clk 0:03:00]}  Bg6 {[%clk 0:02:57]} 6. Nh4 {[%clk 0:03:01]}  e6 {[%clk 0:02:55]} 7. Bg2 {[%clk 0:03:01]}  c6 {[%clk 0:02:55]} 8. c3 {[%clk 0:02:59]}  Be7 {[%clk 0:02:52]} 9. Qb3 {[%clk 0:02:59]}  Qb6 {[%clk 0:02:52]} 10. Nxg6 {[%clk 0:02:51]}  hxg6 {[%clk 0:02:51]} 11. Nc4 {[%clk 0:02:51]}  Qxb3 {[%clk 0:02:44]} 12. axb3 {[%clk 0:02:52]}  Nbd7 {[%clk 0:02:45]} 13. Bf4 {[%clk 0:02:51]}  d5 {[%clk 0:02:44]} 14. Nd6+ {[%clk 0:01:51]}  Bxd6 {[%clk 0:02:44]} 15. Bxd6 {[%clk 0:01:52]}  Ne4 {[%clk 0:02:38]} 16. Bf4 {[%clk 0:01:38]}  g5 {[%clk 0:02:28]} 17. Bh2 {[%clk 0:01:24]}  Ke7 {[%clk 0:02:01]} 18. f3 {[%clk 0:01:15]}  Nd6 {[%clk 0:02:00]} 19. e4 {[%clk 0:01:04]}  f5 {[%clk 0:01:47]} 20. gxf5 {[%clk 0:00:29]}  exf5 {[%clk 0:01:47]} 21. exd5 {[%clk 0:00:30]}  cxd5 {[%clk 0:01:44]} 22. f4 {[%clk 0:00:30]}  gxf4 {[%clk 0:01:30]} 23. Bxf4 {[%clk 0:00:23]}  Ne4 {[%clk 0:01:28]} 24. O-O {[%clk 0:00:11]}  Ke6 {[%clk 0:01:16]} 25. c4 {[%clk 0:00:09]}  Nb6 {[%clk 0:00:26]} 26. Ra5 {[%clk 0:00:09]}  Rhf8 {[%clk 0:00:08]} 27. Rfa1 {[%clk 0:00:06]}  a6 {[%clk 0:00:07]} 28. Bc7 {[%clk 0:00:05]}  Nd7 {[%clk 0:00:02]} 29. Rxd5 {[%clk 0:00:06]}  Ndf6 {[%clk 0:00:03]} 30. Re5+ {[%clk 0:00:06]}  Kd7 {[%clk 0:00:03]} 31. Ba5 {[%clk 0:00:06]}  g6 {[%clk 0:00:03]} 32. Be1 {[%clk 0:00:06]}  Rae8 {[%clk 0:00:02]} 33. Rxe8 {[%clk 0:00:06]}  Rxe8 {[%clk 0:00:03]} 34. Bh4 {[%clk 0:00:06]}  Nh5 {[%clk 0:00:02]} 35. Re1 {[%clk 0:00:05]}  Nd2 {[%clk 0:00:02]} 36. Rxe8 {[%clk 0:00:05]}  Kxe8 {[%clk 0:00:03]} 37. Bxb7 {[%clk 0:00:05]}  Nxb3 {[%clk 0:00:03]} 38. Bxa6 {[%clk 0:00:05]}  Nxd4 {[%clk 0:00:03]} 39. Bf2 {[%clk 0:00:05]}  Nf3+ {[%clk 0:00:01]} 40. Kf1 {[%clk 0:00:05]}  Nd2+ {[%clk 0:00:01]} 41. Ke2 {[%clk 0:00:05]}  Ne4 {[%clk 0:00:02]} 42. Be1 {[%clk 0:00:05]}  Nf4+ {[%clk 0:00:03]} 43. Ke3 {[%clk 0:00:06]}  Nxh3 {[%clk 0:00:03]} 44. b4 {[%clk 0:00:06]}  Nhg5 {[%clk 0:00:03]} 45. c5 {[%clk 0:00:06]}  Ne6 {[%clk 0:00:03]} 46. c6 {[%clk 0:00:07]}  Nd6 {[%clk 0:00:02]} 47. Bd3 {[%clk 0:00:07]}  f4+ {[%clk 0:00:02]} 48. Kf3 {[%clk 0:00:07]}  g5 {[%clk 0:00:03]} 49. b5 {[%clk 0:00:07]}  Kd8 {[%clk 0:00:02]} 50. Kg4 {[%clk 0:00:07]}  Kc8 {[%clk 0:00:01]} 51. Ba5 {[%clk 0:00:08]}  Nd4 {[%clk 0:00:01]} 52. Kxg5 {[%clk 0:00:07]}  N4xb5 {[%clk 0:00:01]} 53. Kxf4 {[%clk 0:00:08]}  Nd4 {[%clk 0:00:01]} 54. Bb4 {[%clk 0:00:07]}  Nxc6 {[%clk 0:00:02]} 55. Bxd6 {[%clk 0:00:07]}  Kd7 {[%clk 0:00:02]} 56. Bc5 {[%clk 0:00:08]}  Kc7 {[%clk 0:00:02]} 57. Bb5 {[%clk 0:00:09]}  Kb7 {[%clk 0:00:03]} 58. Ke4 {[%clk 0:00:09]}  Na7 {[%clk 0:00:04]} 59. Ba4 {[%clk 0:00:09]}  Nc6 {[%clk 0:00:04]} 60. Kd5 {[%clk 0:00:09]}  Na5 {[%clk 0:00:04]} 61. Bd7 {[%clk 0:00:09]}  Ka6 {[%clk 0:00:04]} 62. Bd6 {[%clk 0:00:09]}  Nb7 {[%clk 0:00:04]} 63. Bb4 {[%clk 0:00:09]}  Kb6 {[%clk 0:00:04]} 64. Bc6 {[%clk 0:00:09]}  Nd8 {[%clk 0:00:04]} 65. Ba4 {[%clk 0:00:08]}  Nb7 {[%clk 0:00:04]} 66. Bf8 {[%clk 0:00:08]}  Kc7 {[%clk 0:00:04]} 67. Bb5 {[%clk 0:00:08]}  Kb6 {[%clk 0:00:04]} 68. Bd3 {[%clk 0:00:08]}  Kc7 {[%clk 0:00:05]} 69. Bg7 {[%clk 0:00:08]}  Kb6 {[%clk 0:00:06]} 70. Bd4+ {[%clk 0:00:09]}  Kc7 {[%clk 0:00:06]} 71. Kc4 {[%clk 0:00:09]}  Kc6 {[%clk 0:00:06]} 72. Be4+ {[%clk 0:00:09]}  Kc7 {[%clk 0:00:06]} 73. Be5+ {[%clk 0:00:09]}  Kb6 {[%clk 0:00:07]} 74. Kb4 {[%clk 0:00:10]}  Ka6 {[%clk 0:00:06]} 75. Bd3+ {[%clk 0:00:10]}  Kb6 {[%clk 0:00:06]} 76. Bd4+ {[%clk 0:00:07]}  Kc7 {[%clk 0:00:06]} 77. Be5+ {[%clk 0:00:07]}  Kb6 {[%clk 0:00:07]} 78. Bc4 {[%clk 0:00:07]}  Kc6 {[%clk 0:00:06]} 79. Bb5+ {[%clk 0:00:07]}  Kb6 {[%clk 0:00:07]} 80. Bd4+ {[%clk 0:00:06]}  Kc7 {[%clk 0:00:08]} 81. Bc4 {[%clk 0:00:06]}  Kc6 {[%clk 0:00:07]} 82. Bb3 {[%clk 0:00:03]}  Kc7 {[%clk 0:00:07]} 83. Be5+ {[%clk 0:00:03]}  Kb6 {[%clk 0:00:06]} 84. Bd5 {[%clk 0:00:04]}  Ka6 {[%clk 0:00:06]} 85. Be6 {[%clk 0:00:04]}  Kb6 {[%clk 0:00:05]} 86. Bc8 {[%clk 0:00:05]}  Kc6 {[%clk 0:00:04]} 87. Bf5 {[%clk 0:00:04]}  Kb6 {[%clk 0:00:05]} 88. Bd4+ {[%clk 0:00:05]}  Kc7 {[%clk 0:00:05]} 89. Kc3 {[%clk 0:00:04]}  Kc6 {[%clk 0:00:04]} 90. Bd3 {[%clk 0:00:04]}  Kc7 {[%clk 0:00:05]} 91. Be5+ {[%clk 0:00:04]}  Kc6 {[%clk 0:00:05]} 92. Kd4 {[%clk 0:00:05]}  Kb6 {[%clk 0:00:05]} 93. Be4 {[%clk 0:00:05]}  Nc5 {[%clk 0:00:04]} 94. Bf3 {[%clk 0:00:06]}  Nb7 {[%clk 0:00:04]} 95. Kd5 {[%clk 0:00:06]}  Kb5 {[%clk 0:00:04]} 96. Be2+ {[%clk 0:00:06]}  Kb6 {[%clk 0:00:04]} 97. Bd4+ {[%clk 0:00:06]}  Kc7 {[%clk 0:00:05]} 98. Ke6 {[%clk 0:00:07]}  Kc6 {[%clk 0:00:03]} 99. Bf3+ {[%clk 0:00:07]}  Kc7 {[%clk 0:00:04]} 100. Ke7 {[%clk 0:00:07]}  Na5 {[%clk 0:00:03]} 101. Be5+ {[%clk 0:00:07]}  Kb6 {[%clk 0:00:03]} 102. Bd5 {[%clk 0:00:07]}  Nb7 {[%clk 0:00:03]} 103. Kd7 {[%clk 0:00:06]}  Nc5+ {[%clk 0:00:04]} 104. Kc8 {[%clk 0:00:06]}  Nb7 {[%clk 0:00:04]} 105. Bxb7 {[%clk 0:00:06]}  Kc5 {[%clk 0:00:05]} 106. Bc7 {[%clk 0:00:07]}  Kc4 {[%clk 0:00:05]} 107. Kd7 {[%clk 0:00:08]}  Kd4 {[%clk 0:00:04]} 108. Bd6 {[%clk 0:00:08]}  Kd3 {[%clk 0:00:04]} 109. Bd5 {[%clk 0:00:08]} 1-0


[Site "https://www.chess.com"]